[Event "Manhemjunioren 2024"]
[Site "Goteborgs Schackcentrum, Vegatan 20, Gothenburg, Sweden"]
[Date "2024.04.06"]
[Round "2.8"]
[White "Ramovic, Isak"]
[Black "Holma, Tim"]
[Result "1-0"]
[TimeControl "18 minutes + 10 seconds per move from move one."]
[WhiteFideId "1779281"]
[BlackFideId "1785850"]
[WhiteElo "1561"]
[BlackElo "1430"]

1. e4 {[%clk 00:18:18]} {[%emt 00:00:01]} e5 {[%clk 00:18:19]} {[%emt
00:00:02]} 2. Nf3 {[%clk 00:18:27]} Nc6 {[%clk 00:18:27]} {[%emt 00:00:02]} 3.
Bc4 {[%clk 00:18:36]} {[%emt 00:00:01]} Bc5 {[%clk 00:18:35]} {[%emt 00:00:02]}
4. d3 {[%clk 00:18:42]} {[%emt 00:00:04]} h6 {[%clk 00:18:32]} {[%emt
00:00:13]} 5. c3 {[%clk 00:18:40]} {[%emt 00:00:11]} d6 {[%clk 00:16:39]}
{[%emt 00:02:03]} 6. O-O {[%clk 00:18:46]} {[%emt 00:00:04]} Be6 {[%clk
00:16:16]} {[%emt 00:00:33]} 7. Bxe6 {[%clk 00:18:46]} {[%emt 00:00:10]} fxe6
{[%clk 00:16:23]} {[%emt 00:00:02]} 8. b4 {[%clk 00:18:54]} {[%emt 00:00:04]}
Bb6 {[%clk 00:16:20]} {[%emt 00:00:12]} 9. Re1 {[%clk 00:19:01]} {[%emt
00:00:03]} Nf6 {[%clk 00:15:47]} {[%emt 00:00:43]} 10. h3 {[%clk 00:19:10]}
{[%emt 00:00:01]} O-O {[%clk 00:15:05]} {[%emt 00:00:52]} 11. a4 {[%clk
00:19:08]} {[%emt 00:00:13]} a6 {[%clk 00:13:42]} {[%emt 00:01:32]} 12. Nbd2
{[%clk 00:18:49]} {[%emt 00:00:28]} Qe7 {[%clk 00:12:51]} {[%emt 00:01:01]} 13.
Nf1 {[%clk 00:18:37]} {[%emt 00:00:23]} Nh5 {[%clk 00:11:31]} {[%emt 00:01:30]}
14. a5 {[%clk 00:18:26]} {[%emt 00:00:21]} Ba7 {[%clk 00:11:23]} {[%emt
00:00:17]} 15. d4 {[%clk 00:17:35]} {[%emt 00:01:01]} Qf7 {[%clk 00:08:16]}
{[%emt 00:03:16]} 16. N1h2 {[%clk 00:16:02]} {[%emt 00:01:43]} exd4 {[%clk
00:07:07]} {[%emt 00:01:18]} 17. cxd4 {[%clk 00:09:08]} {[%emt 00:07:06]} Bxd4
{[%clk 00:07:06]} {[%emt 00:00:09]} 18. Ra2 {[%clk 00:07:16]} {[%emt 00:02:04]}
Nxb4 {[%clk 00:05:54]} {[%emt 00:01:21]} 19. Qxd4 {[%clk 00:05:34]} {[%emt
00:01:53]} Nxa2 {[%clk 00:05:38]} {[%emt 00:00:25]} 20. Be3 {[%clk 00:04:00]}
{[%emt 00:01:45]} e5 {[%clk 00:03:10]} {[%emt 00:02:38]} 21. Qb2 {[%clk
00:03:50]} {[%emt 00:00:20]} c6 {[%clk 00:02:00]} {[%emt 00:01:20]} 22. Re2
{[%clk 00:03:08]} {[%emt 00:00:51]} Nf4 {[%clk 00:00:59]} {[%emt 00:01:11]} 23.
Bxf4 {[%clk 00:02:42]} {[%emt 00:00:36]} Qxf4 {[%clk 00:00:29]} {[%emt
00:00:40]} 24. Qxa2+ {[%clk 00:02:51]} {[%emt 00:00:02]} Kh8 {[%clk 00:00:24]}
{[%emt 00:00:16]} 25. Qd2 {[%clk 00:01:20]} {[%emt 00:01:41]} Rad8 {[%clk
00:00:23]} {[%emt 00:00:11]} 26. Qxf4 {[%clk 00:01:19]} {[%emt 00:00:11]} Rxf4
{[%clk 00:00:16]} {[%emt 00:00:15]} 27. g3 {[%clk 00:01:12]} {[%emt 00:00:17]}
Rff8 {[%clk 00:00:24]} {[%emt 00:00:02]} 28. Rb2 {[%clk 00:01:07]} {[%emt
00:00:15]} Rd7 {[%clk 00:00:22]} {[%emt 00:00:12]} 29. Nh4 {[%clk 00:01:14]}
{[%emt 00:00:03]} Kh7 {[%clk 00:00:27]} {[%emt 00:00:06]} 30. Nf1 {[%clk
00:00:47]} {[%emt 00:00:37]} d5 {[%clk 00:00:18]} {[%emt 00:00:19]} 31. exd5
{[%clk 00:00:25]} {[%emt 00:00:32]} cxd5 {[%clk 00:00:23]} {[%emt 00:00:04]} 32.
Ne3 {[%clk 00:00:30]} {[%emt 00:00:05]} d4 {[%clk 00:00:28]} {[%emt 00:00:06]}
33. Nc4 {[%clk 00:00:24]} {[%emt 00:00:16]} Rd5 {[%clk 00:00:18]} {[%emt
00:00:20]} 34. Rxb7 {[%clk 00:00:29]} {[%emt 00:00:05]} d3 {[%clk 00:00:20]}
{[%emt 00:00:07]} 35. Rb2 {[%clk 00:00:27]} {[%emt 00:00:11]} e4 {[%clk
00:00:16]} {[%emt 00:00:15]} 36. Ne3 {[%clk 00:00:30]} {[%emt 00:00:07]} Rdd8
{[%clk 00:00:21]} {[%emt 00:00:04]} 37. Rd2 {[%clk 00:00:28]} {[%emt 00:00:13]}
Rf7 {[%clk 00:00:15]} {[%emt 00:00:16]} 38. Kg2 {[%clk 00:00:35]} {[%emt
00:00:03]} Rc7 {[%clk 00:00:13]} {[%emt 00:00:12]} 39. f3 {[%clk 00:00:28]}
{[%emt 00:00:16]} Re8 {[%clk 00:00:13]} {[%emt 00:00:10]} 40. fxe4 {[%clk
00:00:28]} {[%emt 00:00:10]} Rxe4 {[%clk 00:00:20]} {[%emt 00:00:02]} 41. Rxd3
{[%clk 00:00:29]} {[%emt 00:00:10]} Rc5 {[%clk 00:00:19]} {[%emt 00:00:12]} 42.
Ra3 {[%clk 00:00:15]} {[%emt 00:00:24]} Ree5 {[%clk 00:00:21]} {[%emt
00:00:08]} 43. Rb3 {[%clk 00:00:16]} {[%emt 00:00:09]} Rxa5 {[%emt 00:00:08]}
44. Nc4 {[%clk 00:00:25]} Re2+ {[%clk 00:00:30]} {[%emt 00:00:03]} 45. Kf3
{[%clk 00:00:32]} {[%emt 00:00:02]} Rb5 {[%emt 00:00:07]} 46. Rxb5 {[%clk
00:00:16]} {[%emt 00:00:25]} axb5 {[%clk 00:00:42]} {[%emt 00:00:02]} 47. Ne3
{[%clk 00:00:16]} {[%emt 00:00:10]} Ra2 {[%clk 00:00:45]} {[%emt 00:00:08]} 48.
Ke4 {[%clk 00:00:12]} {[%emt 00:00:15]} Ra8 {[%clk 00:00:24]} {[%emt 00:00:30]}
49. Kd5 {[%clk 00:00:12]} {[%emt 00:00:10]} Rc8 {[%clk 00:00:31]} {[%emt
00:00:02]} 50. Nhf5 {[%clk 00:00:14]} {[%emt 00:00:08]} b4 {[%clk 00:00:24]}
{[%emt 00:00:18]} 51. Nc4 {[%clk 00:00:20]} {[%emt 00:00:03]} b3 {[%clk
00:00:28]} {[%emt 00:00:06]} 52. Nd4 {[%clk 00:00:22]} {[%emt 00:00:08]} Rxc4
{[%clk 00:00:21]} {[%emt 00:00:17]} 53. Nxb3 {[%clk 00:00:30]} {[%emt
00:00:03]} Rc3 {[%clk 00:00:27]} {[%emt 00:00:03]} 54. Nd4 {[%clk 00:00:36]}
{[%emt 00:00:05]} Rxg3 {[%clk 00:00:33]} {[%emt 00:00:02]} 55. h4 {[%clk
00:00:32]} {[%emt 00:00:16]} g5 {[%clk 00:00:31]} {[%emt 00:00:12]} 56. hxg5
{[%clk 00:00:32]} {[%emt 00:00:11]} Rxg5+ {[%clk 00:00:29]} {[%emt 00:00:11]}
57. Ke4 {[%clk 00:00:39]} {[%emt 00:00:04]} h5 {[%clk 00:00:23]} {[%emt
00:00:15]} 58. Ne2 {[%clk 00:00:17]} {[%emt 00:00:33]} h4 {[%clk 00:00:21]}
{[%emt 00:00:12]} 59. Nf4 {[%clk 00:00:12]} {[%emt 00:00:15]} Rg1 {[%clk
00:00:12]} {[%emt 00:00:20]} 60. Kf3 {[%clk 00:00:12]} {[%emt 00:00:10]} Kh6
{[%emt 00:00:13]} 61. Nh3 {[%clk 00:00:15]} {[%emt 00:00:04]} Ra1 {[%clk
00:00:20]} {[%emt 00:00:02]} 62. Kg4 {[%clk 00:00:21]} {[%emt 00:00:04]} Ra4+
{[%clk 00:00:26]} {[%emt 00:00:04]} 63. Kf3 {[%clk 00:00:28]} {[%emt 00:00:03]}
Kh5 {[%clk 00:00:32]} {[%emt 00:00:04]} 64. Nf4+ {[%clk 00:00:21]} {[%emt
00:00:18]} Kg5 {[%clk 00:00:37]} {[%emt 00:00:04]} 65. Nh3+ {[%clk 00:00:29]}
{[%emt 00:00:03]} Kf5 {[%clk 00:00:43]} {[%emt 00:00:04]} 66. Kg2 {[%clk
00:00:20]} {[%emt 00:00:19]} Kg4 {[%clk 00:00:46]} {[%emt 00:00:07]} 67. Nf2+
{[%clk 00:00:14]} {[%emt 00:00:16]} Kf4 {[%clk 00:00:49]} {[%emt 00:00:06]} 68.
Nh3+ {[%clk 00:00:13]} {[%emt 00:00:11]} Ke3 {[%clk 00:00:49]} {[%emt
00:00:10]} 69. Ng5 {[%clk 00:00:11]} {[%emt 00:00:13]} Rg4+ {[%clk 00:00:54]}
{[%emt 00:00:05]} 70. Kh3 {[%clk 00:00:18]} {[%emt 00:00:04]} Rxg5 {[%clk
00:01:01]} {[%emt 00:00:02]} 71. Kxh4 {[%clk 00:00:26]} {[%emt 00:00:02]} Kf4
{[%clk 00:01:08]} {[%emt 00:00:04]} 72. Kh3 {[%clk 00:00:33]} {[%emt 00:00:03]}
Rg4 {[%clk 00:01:08]} {[%emt 00:00:10]} 73. Kh2 {[%clk 00:00:41]} {[%emt
00:00:02]} Kf3 {[%clk 00:01:14]} {[%emt 00:00:04]} 74. Kh1 {[%clk 00:00:49]}
{[%emt 00:00:02]} Kf2 {[%clk 00:01:13]} {[%emt 00:00:12]} {black's phone made a
sound} 1-0

[Event "Manhemjunioren 2024"]
[Site "Goteborgs Schackcentrum, Vegatan 20, Gothenburg, Sweden"]
[Date "2024.04.06"]
[Round "3.1"]
[White "Norberg, Arild"]
[Black "Bahl, Advaiya"]
[Result "1-0"]
[TimeControl "18 minutes + 10 seconds per move from move one."]
[WhiteFideId "1774484"]
[BlackFideId "1782002"]
[WhiteElo "1683"]
[BlackElo "1609"]

1. d4 {[%clk 00:18:12]} {[%emt 00:00:07]} d5 {[%clk 00:18:18]} {[%emt
00:00:02]} 2. Bf4 {[%clk 00:18:15]} {[%emt 00:00:07]} Bf5 {[%clk 00:18:24]}
{[%emt 00:00:04]} 3. Nf3 {[%clk 00:18:13]} {[%emt 00:00:12]} Nf6 {[%clk
00:18:32]} {[%emt 00:00:03]} 4. e3 {[%clk 00:18:14]} {[%emt 00:00:09]} e6
{[%clk 00:18:34]} {[%emt 00:00:08]} 5. a3 {[%clk 00:18:07]} {[%emt 00:00:16]}
c5 {[%clk 00:18:16]} {[%emt 00:00:28]} 6. Bb5+ {[%clk 00:18:04]} {[%emt
00:00:13]} Nc6 {[%clk 00:18:21]} {[%emt 00:00:05]} 7. Ne5 {[%clk 00:17:58]}
{[%emt 00:00:15]} Rc8 {[%clk 00:18:13]} {[%emt 00:00:18]} 8. h3 {[%clk
00:17:48]} {[%emt 00:00:20]} a6 {[%clk 00:18:16]} {[%emt 00:00:08]} 9. Bxc6+
{[%clk 00:17:52]} {[%emt 00:00:06]} bxc6 {[%clk 00:18:23]} {[%emt 00:00:03]} 10.
c3 {[%clk 00:17:47]} {[%emt 00:00:15]} c4 {[%clk 00:17:56]} {[%emt 00:00:37]}
11. b3 {[%clk 00:17:30]} {[%emt 00:00:27]} cxb3 {[%clk 00:16:17]} {[%emt
00:01:49]} 12. Qxb3 {[%clk 00:17:31]} {[%emt 00:00:09]} Nd7 {[%clk 00:16:12]}
{[%emt 00:00:15]} 13. Nd2 {[%clk 00:17:04]} {[%emt 00:00:37]} Nxe5 {[%clk
00:16:11]} {[%emt 00:00:11]} 14. Bxe5 {[%clk 00:17:09]} {[%emt 00:00:05]} f6
{[%clk 00:16:14]} {[%emt 00:00:06]} 15. Bf4 {[%clk 00:17:10]} {[%emt 00:00:09]}
Bd6 {[%clk 00:15:32]} {[%emt 00:00:52]} 16. Bxd6 {[%clk 00:17:02]} {[%emt
00:00:18]} Qxd6 {[%clk 00:15:39]} {[%emt 00:00:02]} 17. Qb7 {[%clk 00:17:01]}
{[%emt 00:00:11]} O-O {[%clk 00:15:17]} {[%emt 00:00:32]} 18. O-O {[%clk
00:16:25]} {[%emt 00:00:46]} Bd3 {[%clk 00:14:50]} {[%emt 00:00:38]} 19. Rfe1
{[%clk 00:14:49]} {[%emt 00:01:46]} Ra8 {[%clk 00:14:55]} {[%emt 00:00:05]} 20.
Qb4 {[%clk 00:14:38]} {[%emt 00:00:20]} Qb8 {[%clk 00:13:43]} {[%emt 00:01:22]}
21. Nb3 {[%clk 00:14:25]} {[%emt 00:00:23]} Qxb4 {[%clk 00:12:46]} {[%emt
00:01:07]} 22. axb4 {[%clk 00:14:32]} {[%emt 00:00:03]} Bb5 {[%clk 00:12:48]}
{[%emt 00:00:08]} 23. Nc5 {[%clk 00:14:36]} {[%emt 00:00:06]} Kf7 {[%clk
00:12:51]} {[%emt 00:00:08]} 24. e4 {[%clk 00:14:39]} {[%emt 00:00:06]} Rfe8
{[%clk 00:12:43]} {[%emt 00:00:18]} 25. e5 {[%clk 00:14:45]} {[%emt 00:00:04]}
f5 {[%clk 00:12:44]} {[%emt 00:00:10]} 26. Nb7 {[%clk 00:14:47]} {[%emt
00:00:08]} Ke7 {[%clk 00:12:32]} {[%emt 00:00:22]} 27. Nc5 {[%clk 00:14:42]}
{[%emt 00:00:15]} g6 {[%clk 00:12:27]} {[%emt 00:00:15]} 28. Ra3 {[%clk
00:14:44]} {[%emt 00:00:07]} Bc4 {[%clk 00:12:13]} {[%emt 00:00:24]} 29. Rea1
{[%clk 00:14:42]} {[%emt 00:00:13]} Rec8 {[%clk 00:11:15]} {[%emt 00:01:08]} 30.
Nxa6 {[%clk 00:14:43]} {[%emt 00:00:08]} Bxa6 {[%clk 00:11:21]} {[%emt
00:00:04]} 31. Rxa6 {[%clk 00:14:52]} {[%emt 00:00:01]} Rxa6 {[%clk 00:11:29]}
{[%emt 00:00:02]} 32. Rxa6 {[%clk 00:15:01]} {[%emt 00:00:01]} Rc7 {[%clk
00:11:35]} {[%emt 00:00:04]} 33. f4 {[%emt 00:00:16]} h5 {[%clk 00:11:41]} 34.
Kf2 {[%clk 00:15:00]} {[%emt 00:00:10]} h4 {[%clk 00:11:07]} {[%emt 00:00:43]}
35. g3 {[%clk 00:14:58]} {[%emt 00:00:12]} hxg3+ {[%clk 00:11:11]} {[%emt
00:00:06]} 36. Kxg3 {[%clk 00:15:07]} {[%emt 00:00:01]} Kf7 {[%clk 00:11:19]}
{[%emt 00:00:01]} 37. Kh4 {[%clk 00:14:57]} {[%emt 00:00:19]} Kg8 {[%clk
00:09:58]} {[%emt 00:01:32]} 38. Kg5 {[%clk 00:14:57]} {[%emt 00:00:10]} Kg7
{[%clk 00:09:52]} {[%emt 00:00:16]} 39. h4 {[%clk 00:14:57]} {[%emt 00:00:10]}
Kf7 {[%clk 00:09:47]} {[%emt 00:00:15]} 40. h5 {[%clk 00:15:02]} {[%emt
00:00:05]} gxh5 {[%clk 00:09:51]} {[%emt 00:00:06]} 41. Kxh5 {[%clk 00:15:10]}
{[%emt 00:00:01]} Kg7 {[%clk 00:09:53]} {[%emt 00:00:09]} 42. Kg5 {[%clk
00:14:50]} {[%emt 00:00:30]} Kf7 {[%clk 00:09:51]} {[%emt 00:00:12]} 43. Kh6
{[%clk 00:14:45]} {[%emt 00:00:14]} Ke7 {[%clk 00:09:49]} {[%emt 00:00:12]} 44.
Kg6 {[%clk 00:14:51]} {[%emt 00:00:05]} Kd7 {[%clk 00:09:48]} {[%emt 00:00:11]}
45. Kf6 {[%clk 00:14:56]} {[%emt 00:00:05]} Rb7 {[%clk 00:09:50]} {[%emt
00:00:08]} 46. Ra2 {[%clk 00:14:40]} {[%emt 00:00:27]} Rc7 {[%clk 00:08:55]}
{[%emt 00:01:04]} 47. Rh2 {[%clk 00:14:36]} {[%emt 00:00:10]} Rc8 {[%clk
00:08:51]} {[%emt 00:00:19]} 48. Rh7+ {[%clk 00:14:42]} {[%emt 00:00:02]} Kd8
{[%clk 00:08:52]} {[%emt 00:00:10]} 49. Rh8+ {[%clk 00:14:50]} {[%emt
00:00:02]} Kd7 {[%clk 00:08:57]} {[%emt 00:00:05]} 50. Rxc8 {[%clk 00:14:58]}
{[%emt 00:00:02]} Kxc8 {[%clk 00:09:06]} {[%emt 00:00:02]} 51. Kxe6 {[%clk
00:15:06]} {[%emt 00:00:01]} Kc7 {[%clk 00:09:13]} {[%emt 00:00:03]} 52. Kxf5
{[%clk 00:15:14]} {[%emt 00:00:03]} Kb6 {[%clk 00:09:22]} {[%emt 00:00:01]} 53.
e6 {[%clk 00:15:21]} {[%emt 00:00:02]} Kc7 {[%clk 00:09:31]} {[%emt 00:00:02]}
54. Kf6 {[%clk 00:15:30]} Kd8 {[%clk 00:09:38]} {[%emt 00:00:03]} 55. Kf7
{[%clk 00:15:36]} {[%emt 00:00:03]} 1-0

[Event "Manhemjunioren 2024"]
[Site "Goteborgs Schackcentrum, Vegatan 20, Gothenburg, Sweden"]
[Date "2024.04.06"]
[Round "3.2"]
[White "Bergdahl, Daniel"]
[Black "Yang, Mandi"]
[Result "0-1"]
[TimeControl "18 minutes + 10 seconds per move from move one."]
[WhiteFideId "1780921"]
[BlackFideId "1774778"]
[WhiteElo "1627"]
[BlackElo "1738"]

1. e4 {[%clk 00:18:18]} {[%emt 00:00:02]} c5 {[%clk 00:18:19]} {[%emt
00:00:02]} 2. d4 {[%clk 00:18:26]} {[%emt 00:00:01]} cxd4 {[%clk 00:18:28]}
{[%emt 00:00:02]} 3. c3 {[%clk 00:18:35]} {[%emt 00:00:01]} Nf6 {[%clk
00:18:36]} {[%emt 00:00:02]} 4. e5 {[%clk 00:18:40]} {[%emt 00:00:05]} Nd5
{[%clk 00:18:44]} {[%emt 00:00:01]} 5. cxd4 {[%clk 00:18:45]} {[%emt 00:00:05]}
e6 {[%clk 00:18:45]} {[%emt 00:00:10]} 6. Nf3 {[%clk 00:18:53]} {[%emt
00:00:02]} d6 {[%clk 00:18:54]} {[%emt 00:00:02]} 7. Nc3 {[%clk 00:18:56]}
{[%emt 00:00:06]} Nxc3 {[%clk 00:19:01]} {[%emt 00:00:03]} 8. bxc3 {[%clk
00:19:04]} {[%emt 00:00:01]} Qc7 {[%clk 00:19:05]} {[%emt 00:00:07]} 9. Bd2
{[%clk 00:19:06]} {[%emt 00:00:07]} Nd7 {[%clk 00:19:08]} {[%emt 00:00:07]} 10.
Be2 {[%clk 00:19:12]} {[%emt 00:00:04]} dxe5 {[%clk 00:19:16]} {[%emt
00:00:02]} 11. dxe5 {[%clk 00:19:14]} {[%emt 00:00:08]} Nxe5 {[%clk 00:19:21]}
{[%emt 00:00:04]} 12. O-O {[%clk 00:19:14]} {[%emt 00:00:10]} Bd6 {[%clk
00:19:23]} {[%emt 00:00:09]} 13. Nxe5 {[%clk 00:19:08]} {[%emt 00:00:16]} Bxe5
{[%clk 00:19:31]} {[%emt 00:00:02]} 14. Qb3 {[%clk 00:19:05]} {[%emt 00:00:13]}
O-O {[%clk 00:19:30]} {[%emt 00:00:10]} 15. Rad1 {[%clk 00:19:01]} {[%emt
00:00:14]} Bxh2+ {[%clk 00:19:36]} {[%emt 00:00:06]} 16. Kh1 {[%clk 00:19:09]}
{[%emt 00:00:01]} Bf4 {[%clk 00:19:41]} {[%emt 00:00:05]} 17. Bxf4 {[%clk
00:19:13]} {[%emt 00:00:06]} Qxf4 {[%clk 00:19:49]} {[%emt 00:00:02]} 18. g3
{[%clk 00:19:21]} {[%emt 00:00:02]} Qe4+ {[%clk 00:19:42]} {[%emt 00:00:16]}
0-1

[Event "Manhemjunioren 2024"]
[Site "Goteborgs Schackcentrum, Vegatan 20, Gothenburg, Sweden"]
[Date "2024.04.06"]
[Round "3.3"]
[White "Kaplan, Viktor"]
[Black "Back, Arvid"]
[Result "1-0"]
[TimeControl "18 minutes + 10 seconds per move from move one."]
[WhiteFideId "1780956"]
[BlackFideId "1772821"]
[WhiteElo "1596"]
[BlackElo "1512"]

1. d4 {[%emt 00:00:02]} d5 {[%clk 00:18:19]} 2. c4 {[%clk 00:18:28]} {[%emt
00:00:01]} c6 {[%clk 00:18:27]} {[%emt 00:00:02]} 3. Nc3 {[%clk 00:18:37]} Nf6
{[%clk 00:18:36]} {[%emt 00:00:02]} 4. Nf3 {[%clk 00:18:46]} e6 {[%clk
00:18:43]} {[%emt 00:00:04]} 5. Bg5 {[%clk 00:18:55]} Bb4 {[%clk 00:18:52]}
{[%emt 00:00:02]} 6. cxd5 {[%clk 00:17:55]} {[%emt 00:01:10]} Bxc3+ {[%clk
00:18:56]} {[%emt 00:00:05]} 7. bxc3 {[%clk 00:18:04]} {[%emt 00:00:02]} Qxd5
{[%clk 00:19:03]} {[%emt 00:00:03]} 8. Bxf6 {[%clk 00:18:08]} {[%emt 00:00:05]}
gxf6 {[%clk 00:19:11]} {[%emt 00:00:02]} 9. e3 {[%clk 00:17:40]} {[%emt
00:00:38]} Nd7 {[%clk 00:18:46]} {[%emt 00:00:34]} 10. Bd3 {[%clk 00:17:39]}
{[%emt 00:00:11]} e5 {[%clk 00:18:41]} {[%emt 00:00:15]} 11. O-O {[%emt
00:00:11]} e4 {[%clk 00:18:48]} 12. c4 {[%clk 00:17:17]} {[%emt 00:00:34]} Qe6
{[%clk 00:18:40]} {[%emt 00:00:18]} 13. d5 {[%clk 00:17:08]} {[%emt 00:00:19]}
cxd5 {[%clk 00:18:48]} {[%emt 00:00:02]} 14. Nd4 {[%clk 00:17:14]} {[%emt
00:00:03]} Qe5 {[%clk 00:18:05]} {[%emt 00:00:53]} 15. Be2 {[%clk 00:17:16]}
{[%emt 00:00:08]} Nc5 {[%clk 00:17:40]} {[%emt 00:00:36]} 16. cxd5 {[%clk
00:16:24]} {[%emt 00:01:02]} Qxd5 {[%clk 00:17:19]} {[%emt 00:00:30]} 17. Qc2
{[%clk 00:15:05]} {[%emt 00:01:29]} Rg8 {[%clk 00:16:41]} {[%emt 00:00:48]} 18.
Rfd1 {[%clk 00:14:50]} {[%emt 00:00:26]} Qg5 {[%clk 00:16:38]} {[%emt
00:00:12]} 19. g3 {[%clk 00:14:17]} {[%emt 00:00:44]} Bd7 {[%clk 00:16:46]}
{[%emt 00:00:02]} 20. Nb5 {[%clk 00:13:45]} {[%emt 00:00:42]} Bxb5 {[%clk
00:16:43]} {[%emt 00:00:14]} 21. Bxb5+ {[%clk 00:13:53]} {[%emt 00:00:02]} Kf8
{[%clk 00:16:38]} {[%emt 00:00:15]} 22. Rac1 {[%clk 00:13:26]} {[%emt
00:00:36]} Rc8 {[%clk 00:16:08]} {[%emt 00:00:41]} 23. Qc4 {[%clk 00:11:44]}
{[%emt 00:01:52]} Kg7 {[%clk 00:15:14]} {[%emt 00:01:03]} 24. Rd5 {[%clk
00:11:42]} {[%emt 00:00:12]} Qg4 {[%clk 00:12:17]} {[%emt 00:03:08]} 25. Rxc5
{[%clk 00:11:44]} {[%emt 00:00:08]} Rxc5 {[%clk 00:11:29]} {[%emt 00:00:58]} 26.
Qxc5 {[%clk 00:11:50]} {[%emt 00:00:04]} a6 {[%clk 00:11:29]} {[%emt 00:00:10]}
27. Bf1 {[%clk 00:11:23]} {[%emt 00:00:36]} Qe6 {[%clk 00:11:17]} {[%emt
00:00:23]} 28. Qc4 {[%clk 00:11:15]} {[%emt 00:00:17]} Qd6 {[%clk 00:10:25]}
{[%emt 00:01:02]} 29. Qxe4 {[%clk 00:11:02]} {[%emt 00:00:24]} Qd7 {[%clk
00:09:50]} {[%emt 00:00:45]} 30. Bd3 {[%clk 00:10:26]} {[%emt 00:00:46]} Rh8
{[%clk 00:08:52]} {[%emt 00:01:08]} 31. Qf5 {[%clk 00:10:14]} {[%emt 00:00:22]}
Qe7 {[%clk 00:08:06]} {[%emt 00:00:56]} 32. Rc8 {[%clk 00:09:20]} {[%emt
00:01:04]} Qe6 {[%clk 00:06:31]} {[%emt 00:01:45]} 33. Rxh8 {[%clk 00:09:23]}
{[%emt 00:00:06]} Qxf5 {[%clk 00:06:40]} {[%emt 00:00:02]} 34. Bxf5 {[%clk
00:09:30]} {[%emt 00:00:03]} Kxh8 {[%clk 00:06:48]} {[%emt 00:00:01]} 35. Bc8
{[%clk 00:09:38]} {[%emt 00:00:02]} b5 {[%clk 00:06:52]} {[%emt 00:00:06]} 36.
Bxa6 {[%clk 00:09:45]} {[%emt 00:00:03]} b4 {[%clk 00:07:02]} 37. f4 {[%clk
00:09:40]} {[%emt 00:00:15]} Kg8 {[%clk 00:07:11]} {[%emt 00:00:01]} 38. Bd3
{[%clk 00:09:41]} {[%emt 00:00:09]} h6 {[%clk 00:07:19]} {[%emt 00:00:02]} 39.
Kf2 {[%clk 00:09:42]} {[%emt 00:00:10]} Kf8 {[%clk 00:07:28]} 40. Ke2 {[%clk
00:09:50]} {[%emt 00:00:01]} Ke7 {[%clk 00:07:37]} {[%emt 00:00:01]} 41. Kd2
{[%clk 00:09:59]} {[%emt 00:00:01]} Kd6 {[%clk 00:07:46]} {[%emt 00:00:01]} 42.
Kc2 {[%clk 00:10:06]} {[%emt 00:00:03]} Kc5 {[%clk 00:07:55]} 43. Kb3 {[%clk
00:10:15]} {[%emt 00:00:01]} h5 {[%clk 00:08:01]} {[%emt 00:00:04]} 44. h4
{[%clk 00:10:19]} {[%emt 00:00:06]} f5 {[%clk 00:07:30]} {[%emt 00:00:42]} 45.
Bxf5 {[%clk 00:10:25]} {[%emt 00:00:04]} f6 {[%clk 00:07:38]} {[%emt 00:00:02]}
46. Bd3 {[%clk 00:10:32]} {[%emt 00:00:03]} Kd5 {[%clk 00:07:39]} {[%emt
00:00:09]} 47. Kxb4 {[%clk 00:10:39]} {[%emt 00:00:04]} Ke6 {[%clk 00:07:47]}
48. Bg6 {[%clk 00:10:43]} {[%emt 00:00:06]} f5 {[%clk 00:07:51]} {[%emt
00:00:06]} 49. Bxh5 {[%clk 00:10:51]} {[%emt 00:00:02]} Kf6 {[%clk 00:08:00]}
50. Bf3 {[%clk 00:10:59]} {[%emt 00:00:02]} Ke6 {[%clk 00:08:05]} {[%emt
00:00:04]} 51. h5 {[%clk 00:11:07]} {[%emt 00:00:02]} Kf6 {[%emt 00:00:03]} 52.
a4 {[%clk 00:11:16]} Kg7 {[%clk 00:08:20]} {[%emt 00:00:04]} 53. e4 {[%clk
00:11:18]} {[%emt 00:00:07]} Kf6 {[%clk 00:08:27]} {[%emt 00:00:03]} 54. e5+
{[%clk 00:11:26]} {[%emt 00:00:02]} Kg7 {[%clk 00:08:36]} {[%emt 00:00:01]} 55.
Bd5 {[%clk 00:11:31]} {[%emt 00:00:05]} 1-0